Cogmind - Beta 15 @@@ ROGUE MODE // 2025.07.29 @ 20:20:11 Player: Attma Result: Self-destructed Performance ------------- Evolutions (2) 1000 Regions Visited (4) 800 Robots Destroyed (54) 270 Value Destroyed (1306) 1306 Prototype IDs (3) 60 Alien Tech Used (0) 0 Bonus (0) 0 TOTAL SCORE: 3436 Bonus ------- None Cogmind --------- Core Integrity 62/550 Matter 298/300 Energy 100/100 System Corruption 0% Temperature Cool (9) Movement Core (2350) Ox46 Location -8/Materials Parts ------- > --- POWER (1) -------- (None) > --- PROPULSION (2) --- (None) > --- UTILITY (4) ------ Cargo Storage Unit > --- WEAPON (4) ------- (None) > --- INVENTORY (30) --- Ion Engine Light Ion Engine Improved Heat Sink Improved Heat Sink Advanced Weight Redist. System Structural Scanner Sensor Array Experimental Sensor Array Improved Terrain Scanner Improved Terrain Scanner Seismic Detector Light Armor Plating Shield Generator V3-11A's Pendant EM Pulse Cannon EM Pulse Cannon Assault Rifle Assault Rifle Assault Rifle Assault Rifle Assault Rifle Flak Cannon Rocket Launcher Rocket Launcher Mining Laser Hammer Ripper Peak State ------------ > --- POWER ------------ Deuterium Engine > --- PROPULSION ------- Wheel Compact Wheel > --- UTILITY ---------- Cargo Storage Unit Improved Terrain Scanner Hardened Medium Armor Plating > --- WEAPON ----------- EM Pulse Cannon Shotgun Battle Cannon Flak Cannon > --- INVENTORY -------- Ion Engine Light Ion Engine Wheel Improved Heat Sink Improved Heat Sink Structural Scanner Sensor Array Experimental Sensor Array Improved Terrain Scanner Seismic Detector Particle Charger Light Armor Plating V3-11A's Pendant EM Pulse Cannon Assault Rifle Assault Rifle Assault Rifle Assault Rifle Assault Rifle Light Assault Rifle Light Assault Rifle Grenade Launcher Rocket Launcher Mining Laser Hammer Ripper [Rating: 28] Favorites ----------- Power Light Nuclear Core Engine Light Ion Engine Power Core Light Nuclear Core Propulsion Wheel Treads Light Treads Wheel Wheel Utility Cargo Storage Unit Device Improved Terrain Scanner Storage Cargo Storage Unit Protection Hardened Medium Armor Plating Weapon Assault Rifle Energy Cannon EM Pulse Cannon Ballistic Gun Assault Rifle Ballistic Cannon Battle Cannon Launcher Grenade Launcher Special Weapon Mining Laser Build | -11 -10 -10 -10 -8 ------- Run | Yrd Mat Min Sub Mat Slots Evolved 4 | . . . . 4 Power . | . . . . . Propulsion . | . . . . . Utility 2 | . . . . 2 Weapon 2 | . . . . 2 Parts Attached 35 | 8 9 . 7 11 Power 4 | 1 1 . 1 1 Engine 3 | 1 . . 1 1 Core 1 | . 1 . . . Reactor . | . . . . . Propulsion 9 | 3 2 . 2 2 Treads 2 | 2 . . . . Leg . | . . . . . Wheel 7 | 1 2 . 2 2 Hover . | . . . . . Flight . | . . . . . Utility 8 | 2 2 . . 4 Device 3 | 1 . . . 2 Storage 3 | 1 2 . . . Processor . | . . . . . Hackware . | . . . . . Protection 2 | . . . . 2 Artifact . | . . . . . Weapon 14 | 2 4 . 4 4 Energy Gun . | . . . . . Energy Cannon 2 | . . . . 2 Ballistic Gun 7 | 2 2 . 2 1 Ballistic Cannon 2 | . . . 1 1 Launcher 2 | . 1 . 1 . Special Weapon 1 | . 1 . . . Impact Weapon . | . . . . . Slashing Weapon . | . . . . . Piercing Weapon . | . . . . . Special Melee Weapon . | . . . . . Unidentified Prototypes . | . . . . . Parts Lost 16 | . . . 5 11 Power 2 | . . . 1 1 Propulsion 6 | . . . 2 4 Utility 2 | . . . . 2 Weapon 6 | . . . 2 4 Highest Loss Streak 6 | . . . 3 6 To Critical Strikes . | . . . . . Average Backups 18 | 3 10 18 23 24 Power 1 | . 1 2 1 1 Propulsion . | 1 1 1 . . Utility 7 | . 3 7 10 10 Weapon 8 | . 3 8 11 12 Tool/Special . | . . . . . Unused Backups 17 | . . . . 17 Power 1 | . . . . 1 Propulsion . | . . . . . Utility 10 | . . . . 10 Weapon 6 | . . . . 6 Tool/Special . | . . . . . Average Slot Usage (%) 85 | . 90 85 84 84 Engine 6 | . 3 . 10 8 Core 6 | . 10 14 3 . Treads 3 | . 12 . . . Wheel 21 | . 15 28 27 14 Device 3 | . 5 . . 8 Storage 12 | . 13 14 14 9 Protection 2 | . . . . 8 Ballistic Gun 22 | . 27 28 13 24 Ballistic Cannon 4 | . . . 11 6 Peak Build Rating 28 | 9 12 12 15 28 Average Rating 13 | 6 9 11 12 22 On Entrance 8 | . 9 10 12 13 Naked Turns . | . . . . . Heaviest Build 181 | 13 149 148 150 181 Greatest Support 40 | 40 40 26 36 36 Greatest Overweight (x) 48 | . 5 5 9 48 Average Overweight (x) 4 | . 2 5 4 7 Largest Inventory Capacity 30 | 8 30 30 30 30 Average Capacity 26 | 7 21 30 30 30 Most Carried 27 | 5 15 22 25 27 Average Carried 18 | 3 10 18 23 24 Final Capacity 30 | 8 30 30 30 30 Final Carried 27 | 5 15 22 23 27 Class Distribution -------------------- 61% | Hauler-Mutant 13% | Mutant 13% | Hauler-Tank 10% | Hauler-Gunner Dominant Class ---------------- Hauler-Mutant | -10/Materials Hauler-Mutant | -10/Mines Hauler-Mutant | -10/Subcaves Hauler-Tank | -8/Materials Resources | -11 -10 -10 -10 -8 ----------- Run | Yrd Mat Min Sub Mat Matter Collected 1572 | 340 281 92 155 704 Remotely . | . . . . . Salvage Created 1693 | 133 409 268 211 672 Parts 104 | 13 25 22 18 26 Haulers Intercepted 1 | . . . . 1 Recyclers Shooed 1 | 1 . . . . Parts Field Recycled . | . . . . . Retrieved Matter . | . . . . . Parts Self-Destructed 12 | . . . 12 . Prevented . | . . . . . Kills | -11 -10 -10 -10 -8 ------- Run | Yrd Mat Min Sub Mat Combat Hostiles Destroyed 35 | . 11 3 7 14 Guns 16 | . 8 3 1 4 Cannons 8 | . . . 1 7 AOE 10 | . 3 . 5 2 Classes Destroyed 11 | 3 3 . 1 4 Worker 7 | 1 . 3 . 3 Builder 1 | . . . . 1 Tunneler 5 | 3 . 1 . 1 Hauler 1 | . . . . 1 Recycler 3 | 1 . 2 . . Watcher 2 | . 2 . . . Swarmer 9 | . 3 3 . 3 Grunt 19 | . 8 . 2 9 Duelist 1 | . . . . 1 Sentry 1 | . . . . 1 Subdweller 5 | . . . 5 . Best Kill Streak 5 | 3 3 5 2 3 Combat Bots Only 5 | . 3 5 2 3 Max Kills in Single Turn 3 | 1 3 2 1 2 Gunslinging 1 | . . 1 . . Exploded 3 | . 3 . 1 2 Melee . | . . . . . Uniques/NPCs Destroyed . | . . . . . Combat | -11 -10 -10 -10 -8 -------- Run | Yrd Mat Min Sub Mat Hostile Shots Fired 229 | . 39 4 26 160 Missed 66 | . 12 . 8 46 Hits 163 | . 27 4 18 114 Melee 1 | . . . . 1 Projectile 162 | . 27 4 18 113 Critical Strikes 11 | . . . 2 9 Damage Taken 2444 | . 321 26 438 1659 Core 570 | . 32 . 50 488 Absorbed by Shields . | . . . . . Core Remaining (%) 83 | 100 . . 67 . Volleys Fired 137 | 10 33 23 24 47 Largest 4 | 2 2 2 2 4 Hottest 196 | 40 100 40 100 196 Shots Fired 332 | 20 63 46 33 170 Gun 260 | 20 59 46 9 126 Cannon 51 | . . . 9 42 Launcher 10 | . 1 . 7 2 Special 11 | . 3 . 8 . Kinetic 292 | 20 59 46 18 149 Thermal 11 | . 3 . 8 . Explosive 10 | . 1 . 7 2 Electromagnetic 19 | . . . . 19 Robot Hit Streak 13 | 7 10 6 13 7 Robot Miss Streak 4 | 3 3 3 2 4 Penetration Max . | . . . . . Secondary Targets 2 | . . 2 . . Max Gunslinging Chain 1 | . . 1 . . Shots Hit Robots 177 | 12 36 23 19 87 Core Hits 91 | 6 24 11 11 39 Critical Kills . | . . . . . Critical Parts Destroyed 1 | . . . . 1 Critical Strikes 3 | . . . . 3 Destroy 1 | . . . . 1 Blast 2 | . . . . 2 Melee Attacks . | . . . . . Impact . | . . . . . Slashing . | . . . . . Piercing . | . . . . . Sneak Attacks . | . . . . . Combat Hostiles . | . . . . . Follow-up Attacks . | . . . . . Damage Inflicted 3262 | 158 536 259 642 1667 Guns 1620 | 158 408 259 78 717 Cannons 807 | . . . 142 665 Explosions 800 | . 128 . 422 250 Melee . | . . . . . Ramming 35 | . . . . 35 Kinetic 2053 | 158 408 259 220 1008 Thermal . | . . . . . Explosive 800 | . 128 . 422 250 Electromagnetic 374 | . . . . 374 Impact . | . . . . . Slashing . | . . . . . Piercing . | . . . . . Highest Corruption . | . . . . . Average Corruption . | . . . . . Corruption Purged . | . . . . . Corruption Blocked . | . . . . . Overload Shots . | . . . . . Overflow Damage 15 | . 8 . . 7 Projectiles 6 | . . . . 6 Explosions 8 | . 8 . . . Melee 1 | . . . . 1 Knockbacks 13 | . . . 4 9 Impact . | . . . . . Kinetic 11 | . . . 4 7 Secondary 2 | . . . . 2 Self-Inflicted Damage 139 | . 20 . 102 17 Shots 7 | . 1 . 6 . Rammed 3 | . . . . 3 Targets Rammed 3 | . . . . 3 Kicked . | . . . . . Crushed . | . . . . . Highest Temperature 405 | . 40 8 13 405 Average Temperature 87 | . 10 3 13 114 Received Heat Transfer 1197 | . 156 . 114 927 Effects 4 | . . . . 4 Shutdowns 1 | . . . . 1 Energy Bleed 1 | . . . . 1 Matter Decay 1 | . . . . 1 Short Circuit 1 | . . . . 1 Siege Activations . | . . . . . Martial Activations . | . . . . . Shielding Activations . | . . . . . Robots Disrupted . | . . . . . Combat Hostiles . | . . . . . Robots Corrupted 1 | . . . . 1 Combat Hostiles 1 | . . . . 1 Parts Fried 1 | . . . . 1 Impact Corruptions 1 | . . . . 1 Robots Melted . | . . . . . Combat Hostiles . | . . . . . Parts Melted . | . . . . . Heat Transferred . | . . . . . Parts Sabotaged . | . . . . . Parts Stolen . | . . . . . Parts Stripped . | . . . . . Power Chain Reactions . | . . . . . Alert | -11 -10 -10 -10 -8 ------- Run | Yrd Mat Min Sub Mat Maximum Alert Level . | . . . . . Low Security (%) 100 | 100 100 100 . 100 Level 1 . | . . . . . Level 2 . | . . . . . Level 3 . | . . . . . Level 4 . | . . . . . Level 5 . | . . . . . High Security . | . . . . . Max Security . | . . . . . Peak Influence 174 | 10 115 86 . 174 Initial 16 | . . 16 . . Average 31 | 1 30 12 . 53 Influence Increases 986 | 25 340 100 50 471 Destroy 0b10 Robot/C 600 | . 220 60 40 280 Destroy 0b10 Robot/NC 95 | 25 10 30 . 30 Destroy Leader 116 | . 44 10 10 52 Successful Hack 50 | . 48 . . 2 Disable Machine 30 | . . . . 30 Destroy Structure 80 | . 18 . . 62 Lose Combat Pursuer 15 | . . . . 15 Influence Decreases 948 | 25 296 144 50 433 Entered New Map 28 | . . 28 . . Time Decay 810 | 25 296 116 50 323 Lost Part 110 | . . . . 110 Squads Dispatched 4 | . 2 . . 2 Investigation 2 | . 1 . . 1 Extermination . | . . . . . Reinforcement 2 | . 1 . . 1 Assault . | . . . . . Garrison . | . . . . . Intercept . | . . . . . Searches Triggered . | . . . . . Construction Impeded 1 | . . . . 1 Haulers Reinforced . | . . . . . Active Scanning Responses . | . . . . . Cargo Convoy Interrupts . | . . . . . Stealth | -11 -10 -10 -10 -8 --------- Run | Yrd Mat Min Sub Mat Distress Signals 2 | . 1 . . 1 Communications Jammed . | . . . . . Distress Signals . | . . . . . Times Spotted 52 | . 17 2 7 26 Peak Tracking Total 8 | . 5 2 2 8 Tactical Retreats 1 | . . . . 1 Traps | -11 -10 -10 -10 -8 ------- Run | Yrd Mat Min Sub Mat Traps Triggered . | . . . . . Indirectly . | . . . . . Trap Hack Attempts . | . . . . . Triggered . | . . . . . Disarmed . | . . . . . Reprogrammed . | . . . . . Reused . | . . . . . Traps Extracted . | . . . . . Installed . | . . . . . Triggered . | . . . . . Machines | -11 -10 -10 -10 -8 ---------- Run | Yrd Mat Min Sub Mat Machines Disabled 2 | . . . . 2 Max in Single Turn 1 | . . . . 1 Machines Repaired . | . . . . . Machines Dismantled . | . . . . . Machines Sabotaged . | . . . . . Overloaded Fab Kills . | . . . . . Hacking | -11 -10 -10 -10 -8 --------- Run | Yrd Mat Min Sub Mat Machines Accessed 9 | . 6 . 1 2 Terminals 6 | . 4 . . 2 Fabricators . | . . . . . Repair Stations . | . . . . . Recycling Units 2 | . 2 . . . Scanalyzers . | . . . . . Garrison Access . | . . . . . Total Hacks 33 | . 22 . 5 6 Successful 19 | . 11 . 5 3 Failed 14 | . 11 . . 3 Catastrophic 2 | . 2 . . . Database Lockouts . | . . . . . Manual . | . . . . . Terminals 22 | . 16 . . 6 Fabricators . | . . . . . Repair Stations . | . . . . . Recycling Units 6 | . 6 . . . Scanalyzers . | . . . . . Garrison Access . | . . . . . Terminal Hacks 16 | . 8 . 5 3 Record 9 | . 1 . 5 3 Prototype ID Bank 1 | . 1 . . . Branch Access Points 1 | . 1 . . . Emergency Access Points 2 | . 2 . . . Alert Level 1 | . 1 . . . Surveillance Status 1 | . 1 . . . Zone Layout 1 | . 1 . . . Fabricator Hacks . | . . . . . Repair Station Hacks . | . . . . . Recycling Unit Hacks 3 | . 3 . . . Report Inventory 2 | . 2 . . . Retrieve Components 1 | . 1 . . . Scanalyzer . | . . . . . Garrison Access Hacks . | . . . . . Unauthorized Hacks . | . . . . . Terminals . | . . . . . Fabricators . | . . . . . Repair Stations . | . . . . . Recycling Units . | . . . . . Scanalyzers . | . . . . . Garrison Access . | . . . . . Data Cores Recovered . | . . . . . Used . | . . . . . Hacking Detections 7 | . 5 . . 2 Full Trace Events 3 | . 2 . . 1 Feedback Events . | . . . . . Feedback Blocked . | . . . . . Robot Schematics Acquired . | . . . . . Robots Built . | . . . . . Authchips . | . . . . . Time . | . . . . . Total Robot Build Rating . | . . . . . Part Schematics Acquired . | . . . . . Parts Built . | . . . . . Authchips . | . . . . . Time . | . . . . . Total Part Build Rating . | . . . . . Parts Repaired . | . . . . . Time . | . . . . . Parts Recycled . | . . . . . Recycled Matter . | . . . . . Retrieved Matter . | . . . . . Retrieved Components 5 | . 5 . . . Parts Scanalyzed . | . . . . . Part Schematics Acquired . | . . . . . Parts Damaged . | . . . . . Bothacking | -11 -10 -10 -10 -8 ------------ Run | Yrd Mat Min Sub Mat Used RIF Installer . | . . . . . Robots Hacked . | . . . . . Non-combat . | . . . . . Combat . | . . . . . Robot Hacks Applied . | . . . . . Relay Couplers Released . | . . . . . Fabnet Peak Effective % . | . . . . . Robots Rewired . | . . . . . Allies Hacked . | . . . . . Hacks Repelled . | . . . . . Allies | -11 -10 -10 -10 -8 -------- Run | Yrd Mat Min Sub Mat Total Allies . | . . . . . Largest Group . | . . . . . Highest-Rated Group . | . . . . . Highest-Rated Ally . | . . . . . Total Orders . | . . . . . Ally Attacks . | . . . . . Total Damage . | . . . . . Kills . | . . . . . Allies Corrupted . | . . . . . Allies Melted . | . . . . . Intel | -11 -10 -10 -10 -8 ------- Run | Yrd Mat Min Sub Mat Active Infowar (turns) 904 | 90 342 . . 472 Terrain 904 | 90 342 . . 472 Robot Analysis Total . | . . . . . Derelict Logs Recovered 1 | . . 1 . . Drone Launches . | . . . . . Drone Recoveries . | . . . . . Exploration | -11 -10 -10 -10 -8 ------------- Run | Yrd Mat Min Sub Mat Turns Passed 3842 | 206 899 731 1054 952 Spaces Moved 1851 | 99 417 399 572 364 Core 5 | 4 . . . 1 Treads 263 | 90 173 . . . Legs . | . . . . . Wheels 1583 | 5 244 399 572 363 Hover . | . . . . . Flight . | . . . . . Fastest Speed 50 | 50 160 165 153 153 Average Speed 173 | 152 168 165 164 206 Slowest Speed 2450 | 160 400 165 235 2450 Overloaded Moves . | . . . . . Propulsion Burnouts . | . . . . . Robots Hopped . | . . . . . Potential Cave-ins . | . . . . . Cave-ins Triggered . | . . . . . Exploration Rate (%) 38 | 6 59 64 41 23 Regions Visited 4 Branch Regions 2 Pre-discovered Areas . | . . . . . Known Exits Taken 1 | . 1 . . . Unknown Exits Taken 3 | 1 . 1 1 . Scrap Searched 2 | . . 2 . . Spaces Dug 3 | . 3 . . . Terrain Destroyed 121 | . 15 . 33 73 Melee . | . . . . . Projectile 7 | . 3 . . 4 AOE 114 | . 12 . 33 69 Terrain Rammed . | . . . . . Walls Destroyed . | . . . . . Machines Disabled . | . . . . . Actions | -11 -10 -10 -10 -8 --------- Run | Yrd Mat Min Sub Mat Total 2198 | 135 544 430 633 456 Wait 90 | 5 56 2 16 11 Move 1847 | 98 416 398 571 364 Hop . | . . . . . Pick Up 59 | 13 21 7 6 12 Fast Attach . | . . . . . Attach 22 | 8 1 . 5 8 Detach . | . . . . . Swap 31 | . 10 . 11 10 Drop 9 | 1 7 . . 1 Fire 137 | 10 33 23 24 47 Melee . | . . . . . Ram 3 | . . . . 3 Kick . | . . . . . Crush . | . . . . . Escape Stasis . | . . . . . Rewire . | . . . . . Trap . | . . . . . Miscellaneous . | . . . . . Route ------- -11/Scrapyard -10/Materials (discovered 2 exits: [*Mat] / *Min) -10/Mines (discovered 2 exits: [*Mat] / *Sub) -10/Subcaves -8/Materials (discovered 1 exit: Fac) History --------- Turn | Location | Event 48 | -11/Scrapyard | Discovered new exit (range 15) 207 | -11/Scrapyard | Entered Materials 297 | -10/Materials | Identified exit to Mines 333 | -10/Materials | Build established: Mutant 705 | -10/Materials | Discovered new exit (range 12) 831 | -10/Materials | Build established: Hauler-Mutant 1106 | -10/Materials | Entered Mines 1162 | -10/Mines | Received a Rocket Launcher from a helpful Derelict 1447 | -10/Mines | Discovered new exit (range 15) 1526 | -10/Mines | Found a damaged Exp. Sensor Array with a note attached 1529 | -10/Mines | Found Prototype Device 1551 | -10/Mines | Learned 8 Materials zone layouts 1823 | -10/Mines | Discovered new exit (range 6) 1837 | -10/Mines | Entered Subcaves 1838 | -10/Subcaves | Approached by a straggling Scientist 1931 | -10/Subcaves | Visited triangular shrine 1941 | -10/Subcaves | Found Prototype Device 2087 | -10/Subcaves | Visited Clippyterm 2090 | -10/Subcaves | Lost 3 parts (1p1n1w) 2092 | -10/Subcaves | Learned Research security intel 2092 | -10/Subcaves | Learned Factory fabricator intel 2220 | -10/Subcaves | Shifting Twisted Machinery released Shrapnel Trap 2336 | -10/Subcaves | Shifting Twisted Machinery released Ripper 2569 | -10/Subcaves | Discovered new exit (range 9) 2891 | -10/Subcaves | Entered Materials 2891 | -8/Materials | Evolved 4 slots: Utility x2, Weapon x2 2892 | -8/Materials | Identified exit to Factory 3195 | -8/Materials | Build established: Hauler-Tank 3657 | -8/Materials | Build established: Hauler-Gunner 3821 | -8/Materials | Core integrity fell below 50% 3842 | -8/Materials | Core integrity fell below 20% 3843 | -8/Materials | Self-destructed Last Messages --------------- 03796_ Destroyed Med. Matter Pod. 03796_ K-01 Serf system corrupted by crushing effect. 03800_ Slammed into W-25 Informer. 03807_ Deuterium Engine destroyed. 03810_ Terminal disabled. 03810_ Critical hit (Burn: +37). 03811_ K-01 Serf collects debris. 03816_ Hrd. Medium Armor Plating destroyed. 03816_ K-01 Serf collects debris. 03816_ K-01 Serf destroyed. 03818_ Wheel destroyed. 03818_ Acquired 20 matter. 03820_ Lgt. Assault Rifle destroyed. 03822_ Shotgun destroyed. 03831_ Lgt. Assault Rifle destroyed. 03836_ Critical hit (Burn: +37). 03839_ U-05 Engineer suffers critical hit (Burn). 03840_ U-05 Engineer builds a Door. Map ----- +----------------------------------------------------+ | ## """" #????????## =#! """ # ????????? # | | ## #??????#?## += """ # ?????????? + | | ## ########### [# """ #? ?????????? # | | #######+## ^ #! #?????????????? # | | + ^^ *[ ####### ??????????? # | | # #######/#####?????? ????????? # | | # """ #?# #??????????????????? # | | + T" ### #??????????????????? # | | ##### """ / #??????????????????? # | | ####??# #### #??????????????????? # | | # #??# %#??????????????????? # | | """ + #??# === #???????????????????## | | """ #######+#### === #???????????????????### | | * """ ## # === #??????????????????? | | ## #########+#??????????????????? | | ## #?????#?# #??????????????????? | | ######## #???????# #??????????????????? | | ##############/####???#??#u#??????????????????? | | # #%##?#??????# #??????????????????? " | | # " ! # #??????#### ####???????????????? S" | | # T " "/ # ######## g #???????????????? "" | | " "" "" # ####### ??????### | | # "" ""/# g g ??????### | | # """ """ k g ?????? | | # "" "" # * Yu ??????##+ | | # """ """ # @ ####### ?????? | | # """ """!##### #### !ur #???????????????? | | # """ """!#???# #??####+####???????????????? | | # !" %" [#???# #?????? ???????????????????" | | # *%% ! ###?# ##?#??? ??????????????????" | | ########+#####???# #??? ?? ????????????????? | | ##??#??#"####??#?# #???????"" ?????????????????### | | ???#???# #?#?????# #???????""" ???????????????? | | ????##?# #???##?## ###?????""" #??????????????? | | ######## #??##??## +????""? #??????????????? | | # ###?????#####?????????#??????????????? | | """ #=###???#?#?#??????????????????????????? | | """"" =# [=###?????#???#??????????????????????? | | """"" += #???????#?#??#?????????????????????? | | """"" #= #??#??#?##?????????????????????????? | | """ #! #######????? ???????????????????????### | | # # #????????????????????????????? | | # # ##?????"?????????????????????? | | ######## # ]!#?????????????????????????????" | | # # ! #?????????????????????????????" | | "" """ # # ]! #?? ??????????????????????????" | | "" "T" # # #? ?????????????????????????? | | "" + + """ #? ??????????????????????????? | | # # """ #?????????????????????????????### | | # # """ #????????????????????????????? | +----------------------------------------------------+ Best States ------------- Heat Dissipation 31 Energy Generation 14 Energy Capacity 275 Matter Stores 300 Matter Capacity 300 Sight Range 16 Terrain Scan Range 16 Terrain Scan Density 10 Armor Coverage 225 Evasion (%) 50 Recoil Reduction 2 Particle Charging 15 Item Schematics ----------------- None Robot Schematics ------------------ None Fabricated ------------ Nothing Repaired ---------- Nothing Alien Tech Used ----------------- None Achievements -------------- None Challenges ------------ None Game ------ Seed AblativeAerolevGravjet Manual? 0 Play Time 00:42:11 Cumulative 25.7 hours Start 2025.07.29 @ 13:42:41 End 2025.07.29 @ 20:20:11 Sessions 3 Manual Loads 0 Difficulty Rogue Special Mode None Game No. 36 Rogue 36 Adventurer 0 Explorer 0 Win Type - Total 0 Types 0/0/0/0/0/0/0/0/0/0 Lore% 11 Gallery% 20 Achievement% 22 Wizard Run 0 Options --------- Layout 1 ASCII 0 Keyboard 0 Movement Mouse Keybinds 0 Fullscreen 1 Font 32/SmallcapsGlow Map View 25x17 Zoom Use 5% Tactical HUD 1 Map Filters NONE Filters NONE Steam 1 RUN: 1493dabd-c70c-4a12-9a5e-6fa5aa124eb6